fUST/lending_fUST_20251122
["ID","MTS","AMOUNT","RATE_DAILY","PERIOD"]
[394612138,1763765642548,155.15,1.4e-05,2]
[394612139,1763765642884,155.15,1.5e-05,2]
[394612140,1763765643176,155.15,1.6e-05,2]
[394612141,1763765643458,155.15,1.8e-05,2]
[394612142,1763765643915,155.15,1.9e-05,2]
[394612143,1763765644025,155.15,2e-05,2]
[394612144,1763765644439,155.15,2.1e-05,2]
[394612145,1763765644716,155.15,2.3e-05,2]
[394612146,1763765645071,155.15,2.4e-05,2]
[394612147,1763765645398,155.15,2.5e-05,2]
[394612148,1763765645675,155.15,2.6e-05,2]
[394612149,1763765645951,155.15,2.8e-05,2]
[394612150,1763765646265,155.15,2.9e-05,2]
[394612151,1763765646552,155.15,3e-05,2]
[394612152,1763765646879,155.15,3.1e-05,2]
[394612153,1763765647161,155.15,3.3e-05,2]
[394612170,1763766632090,-332.40333238,8.338e-05,2]
[394612171,1763766632099,-150.0,8.465e-05,2]
[394612172,1763766632109,-332.40333238,8.507e-05,2]
[394612173,1763766632119,-177.0,0.00010465,2]
[394612174,1763766632128,-236.981,0.00011984,2]
[394612175,1763766632137,-300.0,0.00012082,2]
[394612176,1763766632146,-1200.0,0.00012082,2]
[394612177,1763766632156,-1470.95148893,0.00012083,2]
[394612178,1763766632167,-1671.97144,0.00012083,2]
[394612179,1763766632179,-2200.10207672,0.00012083,2]
[394612180,1763766632192,-5269.30010608,0.00012083,2]
[394612183,1763766632207,-269370.89195123,0.00012083,2]
[394612185,1763766632218,-330.25242726,0.00012083,2]
[394612186,1763766632229,-301.03178759,0.00012083,2]
[394612244,1763766638063,-408.84818284,0.00012082,2]
[394612245,1763766638074,-250.99484353,0.00012082,2]
[394612247,1763766638083,-670.43496753,0.00012082,2]
[394612249,1763766638092,-199.53888939,0.00012082,2]
[394612251,1763766638115,-371.37873833,0.00012082,2]
[394612253,1763766638124,-500.0,0.00012082,2]
[394612255,1763766638134,-670.43496753,0.00012082,2]
[394612257,1763766638143,-670.43496753,0.00012082,2]
[394612259,1763766638152,-500.0,0.00012082,2]
[394612261,1763766638161,-670.43496753,0.00012082,2]
[394612263,1763766638170,-670.43496753,0.00012082,2]
[394612265,1763766638180,-500.0,0.00012082,2]
[394612267,1763766638189,-670.43496753,0.00012082,2]
[394612269,1763766638201,-670.43496753,0.00012082,2]
[394612271,1763766638210,-500.0,0.00012082,2]
[394612273,1763766638219,-670.43496753,0.00012082,2]
[394612275,1763766638229,-500.0,0.00012082,2]
[394612277,1763766638238,-670.43496753,0.00012082,2]
[394612279,1763766638249,-594.02335773,0.00012082,2]
[394612281,1763766638259,-500.0,0.00012082,2]
[394612283,1763766638268,-670.43496753,0.00012082,2]
[394612285,1763766638277,-315.55016513,0.00012082,2]
[394612291,1763766638322,-184.44983487,0.00012082,2]
[394612293,1763766638331,-670.43496753,0.00012082,2]
[394612295,1763766638341,-500.0,0.00012082,2]
[394612297,1763766638351,-670.43496753,0.00012082,2]
[394612299,1763766638360,-670.43496753,0.00012082,2]
[394612301,1763766638370,-500.0,0.00012082,2]
[394612303,1763766638380,-670.43496753,0.00012082,2]
[394612305,1763766638389,-500.0,0.00012082,2]
[394612307,1763766638398,-670.43496753,0.00012082,2]
[394612309,1763766638407,-670.43496753,0.00012082,2]
[394612311,1763766638416,-670.43496753,0.00012082,2]
[394612313,1763766638425,-500.0,0.00012082,2]
[394612315,1763766638435,-670.43496753,0.00012082,2]
[394612317,1763766638445,-670.43496753,0.00012082,2]
[394612319,1763766638454,-191.78197847,0.00012082,2]
[394612321,1763766638463,-670.43496753,0.00012082,2]
[394612323,1763766638472,-670.43496753,0.00012082,2]
[394612324,1763766638482,-670.43496753,0.00012082,2]
[394612327,1763766638491,-670.43496753,0.00012082,2]
[394612329,1763766638501,-670.43496753,0.00012082,2]
[394612331,1763766638511,-670.43496753,0.00012082,2]
[394612333,1763766638520,-670.43496753,0.00012082,2]
[394612335,1763766638529,-670.43496753,0.00012082,2]
[394612337,1763766638541,-670.43496753,0.00012082,2]
[394612339,1763766638550,-670.43496753,0.00012082,2]
[394612341,1763766638560,-670.43496753,0.00012082,2]
[394612343,1763766638569,-670.43496753,0.00012082,2]
[394612345,1763766638578,-670.43496753,0.00012082,2]
[394612347,1763766638588,-670.43496753,0.00012082,2]
[394612348,1763766638597,-670.43496753,0.00012082,2]
[394612350,1763766638607,-670.43496753,0.00012082,2]
[394612351,1763766638616,-670.43496753,0.00012082,2]
[394612352,1763766638626,-670.43496753,0.00012082,2]
[394612353,1763766638635,-670.43496753,0.00012082,2]
[394612354,1763766638645,-670.43496753,0.00012082,2]
[394612355,1763766638655,-670.43496753,0.00012082,2]
[394612356,1763766638665,-670.43496753,0.00012082,2]
[394612357,1763766638675,-670.43496753,0.00012082,2]
[394612358,1763766638685,-670.43496753,0.00012082,2]
[394612359,1763766638696,-670.43496753,0.00012082,2]
[394612360,1763766638706,-670.43496753,0.00012082,2]
[394612361,1763766638716,-670.43496753,0.00012082,2]
[394612362,1763766638731,-670.43496753,0.00012082,2]
[394612363,1763766638740,-670.43496753,0.00012082,2]
[394612364,1763766638750,-670.43496753,0.00012082,2]
[394612365,1763766638759,-670.43496753,0.00012082,2]
[394612366,1763766638770,-670.43496753,0.00012082,2]
[394612367,1763766638780,-670.43496753,0.00012082,2]
[394612368,1763766638790,-670.43496753,0.00012082,2]
[394612369,1763766638802,-670.43496753,0.00012082,2]
[394612370,1763766638812,-670.43496753,0.00012082,2]
[394612371,1763766638822,-670.43496753,0.00012082,2]
[394612372,1763766638831,-670.43496753,0.00012082,2]
[394612373,1763766638841,-670.43496753,0.00012082,2]
[394612374,1763766638850,-670.43496753,0.00012082,2]
[394612375,1763766638859,-670.43496753,0.00012082,2]
[394612376,1763766638866,-670.43496753,0.00012082,2]
[394612377,1763766638875,-670.43496753,0.00012082,2]
[394612378,1763766638883,-670.43496753,0.00012082,2]
[394612379,1763766638893,-670.43496753,0.00012082,2]
[394612380,1763766638902,-670.43496753,0.00012082,2]
[394612381,1763766638912,-670.43496753,0.00012082,2]
[394612382,1763766638921,-670.43496753,0.00012082,2]
[394612383,1763766638931,-670.43496753,0.00012082,2]
[394612384,1763766638942,-670.43496753,0.00012082,2]
[394612385,1763766638952,-670.43496753,0.00012082,2]
[394612386,1763766638962,-670.43496753,0.00012082,2]
[394612387,1763766638971,-670.43496753,0.00012082,2]
[394612388,1763766638981,-670.43496753,0.00012082,2]
[394612389,1763766638991,-670.43496753,0.00012082,2]
[394612390,1763766639002,-670.43496753,0.00012082,2]
[394612391,1763766639011,-670.43496753,0.00012082,2]
[394612392,1763766639021,-670.43496753,0.00012082,2]
[394612393,1763766639030,-10705.94910644,0.00012083,2]
[394612410,1763766640248,-140771.98254518,0.00012083,2]
[394612412,1763766640261,-1470.922002,0.00012083,2]
[394612417,1763766640297,-10507.0,0.00012083,2]
[394612419,1763766640309,-1807.19034913,0.00012083,2]
[394612491,1763766642190,-8420.10758858,0.00012083,2]
[394612492,1763766642203,-11163.47274094,0.00012083,2]
[394612493,1763766642439,-117063.87807248,0.00012083,2]
[394612494,1763766642451,-323.63253423,0.00012083,2]
[394612495,1763766642472,-22657.22069709,0.00012083,2]
[394612567,1763766646321,-50000.0,0.00012082,2]
[394612569,1763766646330,-22408.29388299,0.00012083,2]
[394612571,1763766646341,-50150.39386914,0.00012083,2]
[394612572,1763766646351,-494.293216,0.00012083,2]
[394612573,1763766646363,-35280.50054273,0.00012083,2]
[394612574,1763766646374,-3886.54647766,0.00012083,2]
[394612575,1763766646385,-41974.44592687,0.00012083,2]
[394612591,1763766646641,-830.6395,0.00012083,2]
[394612593,1763767043361,29458.39879738,0.0002,30]
[394612594,1763767180563,-167.59666762,0.00010969,2]
[394612595,1763767228418,174.0,0.0001836,120]
[394612612,1763767755125,-167.59666762,8.338e-05,2]
[394612613,1763767755146,-126.40333238,8.422e-05,2]
[394612614,1763767768237,-41.19333524,8.422e-05,2]
[394612615,1763767768260,-258.62374031,8.507e-05,2]
[394612616,1763767811353,300.0,0.00012582,89]
[394612617,1763767813109,300.0,0.00012582,64]
[394612618,1763767814801,300.0,0.00012582,92]
[394612619,1763767816518,300.0,0.00012582,49]
[394612620,1763767818280,300.0,0.00012582,71]
[394612621,1763767820029,300.0,0.00012582,104]
[394612622,1763767821866,300.0,0.00012582,104]
[394612623,1763767823602,300.0,0.00012582,98]
[394612624,1763767825358,300.0,0.00012582,68]
[394612625,1763767827076,300.0,0.00012582,62]
[394612626,1763767828780,300.0,0.00012582,56]
[394612627,1763767830497,300.0,0.00012582,14]
[394612700,1763767832753,300.0,0.00012582,90]
[394612703,1763767832779,-7.37868644,8.507e-05,2]
[394612705,1763767832789,-150.0,9.738e-05,2]
[394612707,1763767832799,-98.11880542,0.0001108,2]
[394612709,1763767832812,-929.26250814,0.0001108,2]
[394612712,1763767832823,-229.63648274,0.0001108,2]
[394612714,1763767832831,-177.0,0.00011738,2]
[394612716,1763767832841,-423.07282607,0.00011973,2]
[394612717,1763767832851,-146.0204299,0.00011973,2]
[394612804,1763767833974,300.0,0.00012582,80]
[394612882,1763767835828,300.0,0.00012582,95]
[394612883,1763767837423,300.0,0.00012582,56]
[394612893,1763767838249,-29.67596057,0.00011973,2]
[394612894,1763767838259,-322.70066541,0.00011973,2]
[394612895,1763767838269,-532.2112468,0.00011973,2]
[394612896,1763767838279,-1139.07610366,0.00011973,2]
[394612897,1763767838288,-500.0,0.00011973,2]
[394612898,1763767838298,-1139.07610366,0.00011973,2]
[394612899,1763767838306,-500.0,0.00011973,2]
[394612900,1763767838315,-500.0,0.00011973,2]
[394612901,1763767838324,-8.53042298,0.00011973,2]
[394612902,1763767838342,-302.0,0.00011973,2]
[394612903,1763767838354,-828.54568068,0.00011973,2]
[394612904,1763767838362,-500.0,0.00011973,2]
[394612905,1763767838371,-500.0,0.00011973,2]
[394612906,1763767838380,-1139.07610366,0.00011973,2]
[394612907,1763767838389,-500.0,0.00011973,2]
[394612908,1763767838399,-1139.07610366,0.00011973,2]
[394612909,1763767838408,-500.0,0.00011973,2]
[394612910,1763767838418,-500.0,0.00011973,2]
[394612911,1763767838428,-1139.07610366,0.00011973,2]
[394612912,1763767838437,-500.0,0.00011973,2]
[394612913,1763767838447,-1139.07610366,0.00011973,2]
[394612914,1763767838456,-500.0,0.00011973,2]
[394612915,1763767838466,-500.0,0.00011973,2]
[394612916,1763767838475,-1139.07610366,0.00011973,2]
[394612917,1763767838485,-500.0,0.00011973,2]
[394612918,1763767838495,-1139.07610366,0.00011973,2]
[394612919,1763767838505,-500.0,0.00011973,2]
[394612920,1763767838515,-1139.07610366,0.00011973,2]
[394612921,1763767838525,-500.0,0.00011973,2]
[394612922,1763767838535,-500.0,0.00011973,2]
[394612923,1763767838544,-1139.07610366,0.00011973,2]
[394612924,1763767838555,-500.0,0.00011973,2]
[394612925,1763767838565,-500.0,0.00011973,2]
[394612926,1763767838574,-762.6970015,0.00011973,2]
[394612927,1763767838586,-376.37910216,0.00011973,2]
[394612928,1763767838596,-1139.07610366,0.00011973,2]
[394612929,1763767838605,-500.0,0.00011973,2]
[394612930,1763767838615,-1139.07610366,0.00011973,2]
[394612931,1763767838625,-500.0,0.00011973,2]
[394612932,1763767838635,-1139.07610366,0.00011973,2]
[394612933,1763767838644,-500.0,0.00011973,2]
[394612934,1763767838654,-1139.07610366,0.00011973,2]
[394612935,1763767838663,-500.0,0.00011973,2]
[394612936,1763767838672,-1139.07610366,0.00011973,2]
[394612937,1763767838682,-500.0,0.00011973,2]
[394612938,1763767838691,-1139.07610366,0.00011973,2]
[394612939,1763767838700,-500.0,0.00011973,2]
[394612940,1763767838711,-1139.07610366,0.00011973,2]
[394612941,1763767838721,-500.0,0.00011973,2]
[394612942,1763767838731,-500.0,0.00011973,2]
[394612943,1763767838740,-1139.07610366,0.00011973,2]
[394612944,1763767838751,-66.51922583,0.00011973,2]
[394612945,1763767839142,300.0,0.00012582,37]
[394612955,1763767840634,-1072.55687783,0.00011973,2]
[394612956,1763767840645,-209.42078258,0.00011973,2]
[394612957,1763767840656,-1139.07610366,0.00011973,2]
[394612958,1763767840666,-500.0,0.00011973,2]
[394612959,1763767840677,-1139.07610366,0.00011973,2]
[394612960,1763767840687,-500.0,0.00011973,2]
[394612961,1763767840697,-1139.07610366,0.00011973,2]
[394612962,1763767840707,-500.0,0.00011973,2]
[394612963,1763767840716,-500.0,0.00011973,2]
[394612964,1763767840726,-1139.07610366,0.00011973,2]
[394612965,1763767840735,-1139.07610366,0.00011973,2]
[394612966,1763767840744,-500.0,0.00011973,2]
[394612967,1763767840754,-500.0,0.00011973,2]
[394612968,1763767840764,-1139.07610366,0.00011973,2]
[394612969,1763767840774,-1139.07610366,0.00011973,2]
[394612970,1763767840784,-1139.07610366,0.00011973,2]
[394612971,1763767840794,-1139.07610366,0.00011973,2]
[394612972,1763767840804,-500.0,0.00011973,2]
[394612973,1763767840814,-1139.07610366,0.00011973,2]
[394612974,1763767840824,-1139.07610366,0.00011973,2]
[394612975,1763767840833,-500.0,0.00011973,2]
[394612976,1763767840843,-1139.07610366,0.00011973,2]
[394612977,1763767840852,-1139.07610366,0.00011973,2]
[394612978,1763767840861,-500.0,0.00011973,2]
[394612979,1763767840872,-1139.07610366,0.00011973,2]
[394612980,1763767840882,-538.86637738,0.00011973,2]
[394612981,1763767840892,-1139.07610366,0.00011973,2]
[394612982,1763767840913,-1139.07610366,0.00011973,2]
[394612983,1763767840923,-500.0,0.00011973,2]
[394612984,1763767840932,-1139.07610366,0.00011973,2]
[394612985,1763767840942,-500.0,0.00011973,2]
[394612986,1763767840951,-1139.07610366,0.00011973,2]
[394612987,1763767840960,-1139.07610366,0.00011973,2]
[394612988,1763767840970,-1139.07610366,0.00011973,2]
[394612989,1763767840979,-1139.07610366,0.00011973,2]
[394612990,1763767840988,-1139.07610366,0.00011973,2]
[394612991,1763767840998,-1139.07610366,0.00011973,2]
[394612992,1763767841007,-1139.07610366,0.00011973,2]
[394612993,1763767841016,-1139.07610366,0.00011973,2]
[394612994,1763767841025,-1139.07610366,0.00011973,2]
[394612995,1763767841035,-1139.07610366,0.00011973,2]
[394612996,1763767841044,-1139.07610366,0.00011973,2]
[394612997,1763767841054,-1139.07610366,0.00011973,2]
[394612998,1763767841064,-1139.07610366,0.00011973,2]
[394612999,1763767841074,-300.0,0.00011973,2]
[394613000,1763767841084,-1197.0,0.00011973,2]
[394613001,1763767841093,-50000.0,0.00011974,2]
[394613002,1763767841104,-1200.0,0.00011974,2]
[394613003,1763767841116,-500.0,0.00011975,2]
[394613004,1763767841126,-46081.85616358,0.00011976,2]
[394613005,1763767841144,-18281.47677663,0.00011976,2]
[394613006,1763767841202,300.0,0.00012582,48]
[394613007,1763767842608,157.91,0.00012582,82]
[394613056,1763768854378,3222.822752,0.0001111,3]
[394613074,1763769038771,-911.64336298,8.955e-05,2]
[394613075,1763769038782,-911.64336298,9.045e-05,2]
[394613076,1763769038791,-150.0,9.182e-05,2]
[394613077,1763769038801,-177.0,0.00011182,2]
[394613078,1763769038811,-300.0,0.00011867,2]
[394613079,1763769038820,-16620.24923427,0.00011868,2]
[394613136,1763769050289,-911.64336298,8.865e-05,2]
[394613137,1763769050300,-33379.75076573,0.00011868,2]
[394613138,1763769050310,-500.0,0.00011868,2]
[394613139,1763769050320,-500.0,0.00011868,2]
[394613140,1763769050330,-500.0,0.00011868,2]
[394613141,1763769050340,-500.0,0.00011868,2]
[394613142,1763769050350,-500.0,0.00011868,2]
[394613143,1763769050360,-500.0,0.00011868,2]
[394613144,1763769050371,-500.0,0.00011868,2]
[394613145,1763769050381,-329.20476722,0.00011868,2]
[394613146,1763769050391,-500.0,0.00011868,2]
[394613147,1763769050402,-500.0,0.00011868,2]
[394613148,1763769050413,-500.0,0.00011868,2]
[394613149,1763769050423,-500.0,0.00011868,2]
[394613150,1763769050433,-500.0,0.00011868,2]
[394613151,1763769050443,-500.0,0.00011868,2]
[394613152,1763769050453,-500.0,0.00011868,2]
[394613153,1763769050463,-500.0,0.00011868,2]
[394613154,1763769050473,-500.0,0.00011868,2]
[394613155,1763769050484,-500.0,0.00011868,2]
[394613156,1763769050498,-500.0,0.00011868,2]
[394613157,1763769050508,-500.0,0.00011868,2]
[394613158,1763769050517,-500.0,0.00011868,2]
[394613159,1763769050527,-500.0,0.00011868,2]
[394613160,1763769050539,-500.0,0.00011868,2]
[394613161,1763769050549,-500.0,0.00011868,2]
[394613162,1763769050559,-500.0,0.00011868,2]
[394613163,1763769050568,-500.0,0.00011868,2]
[394613164,1763769050580,-500.0,0.00011868,2]
[394613165,1763769050590,-500.0,0.00011868,2]
[394613166,1763769050600,-500.0,0.00011868,2]
[394613167,1763769050610,-500.0,0.00011868,2]
[394613168,1763769050619,-500.0,0.00011868,2]
[394613169,1763769050630,-500.0,0.00011868,2]
[394613170,1763769050640,-500.0,0.00011868,2]
[394613171,1763769050649,-500.0,0.00011868,2]
[394613172,1763769050659,-500.0,0.00011868,2]
[394613173,1763769050668,-500.0,0.00011868,2]
[394613174,1763769050678,-500.0,0.00011868,2]
[394613175,1763769050688,-500.0,0.00011868,2]
[394613176,1763769050697,-500.0,0.00011868,2]
[394613177,1763769050707,-500.0,0.00011868,2]
[394613178,1763769050718,-500.0,0.00011868,2]
[394613179,1763769050728,-500.0,0.00011868,2]
[394613180,1763769050737,-500.0,0.00011868,2]
[394613181,1763769050747,-500.0,0.00011868,2]
[394613182,1763769050756,-500.0,0.00011868,2]
[394613183,1763769050766,-500.0,0.00011868,2]
[394613184,1763769050775,-500.0,0.00011868,2]
[394613185,1763769050784,-500.0,0.00011868,2]
[394613186,1763769050794,-324.90489606,0.00011868,2]
[394613187,1763769050804,-500.0,0.00011868,2]
[394613188,1763769050814,-500.0,0.00011868,2]
[394613189,1763769050824,-500.0,0.00011868,2]
[394613190,1763769050833,-500.0,0.00011868,2]
[394613191,1763769050843,-500.0,0.00011868,2]
[394613192,1763769050855,-500.0,0.00011868,2]
[394613193,1763769050864,-500.0,0.00011868,2]
[394613194,1763769050875,-589.97205551,0.00011868,2]
[394613195,1763769050885,-589.97205551,0.00011868,2]
[394613196,1763769050895,-1373.15185219,0.00011868,2]
[394613197,1763769050907,-589.97205551,0.00011868,2]
[394613198,1763769050917,-589.97205551,0.00011868,2]
[394613199,1763769050928,-1373.15185219,0.00011868,2]
[394613200,1763769050939,-589.97205551,0.00011868,2]
[394613201,1763769050949,-589.97205551,0.00011868,2]
[394613202,1763769050958,-1373.15185219,0.00011868,2]
[394613203,1763769050968,-589.97205551,0.00011868,2]
[394613204,1763769050980,-1373.15185219,0.00011868,2]
[394613205,1763769050991,-589.97205551,0.00011868,2]
[394613206,1763769051003,-589.97205551,0.00011868,2]
[394613207,1763769051014,-1373.15185219,0.00011868,2]
[394613208,1763769051024,-589.97205551,0.00011868,2]
[394613209,1763769051033,-1373.15185219,0.00011868,2]
[394613210,1763769051043,-589.97205551,0.00011868,2]
[394613211,1763769051052,-589.97205551,0.00011868,2]
[394613212,1763769051062,-1373.15185219,0.00011868,2]
[394613213,1763769051071,-589.97205551,0.00011868,2]
[394613214,1763769051080,-1373.15185219,0.00011868,2]
[394613215,1763769051090,-589.97205551,0.00011868,2]
[394613216,1763769051099,-589.97205551,0.00011868,2]
[394613217,1763769051108,-1373.15185219,0.00011868,2]
[394613218,1763769051118,-589.97205551,0.00011868,2]
[394613219,1763769051127,-589.97205551,0.00011868,2]
[394613220,1763769051137,-1373.15185219,0.00011868,2]
[394613221,1763769051146,-589.97205551,0.00011868,2]
[394613222,1763769051156,-1373.15185219,0.00011868,2]
[394613223,1763769051165,-589.97205551,0.00011868,2]
[394613224,1763769051177,-589.97205551,0.00011868,2]
[394613225,1763769051186,-1373.15185219,0.00011868,2]
[394613226,1763769051195,-589.97205551,0.00011868,2]
[394613227,1763769051205,-589.97205551,0.00011868,2]
[394613228,1763769051216,-1373.15185219,0.00011868,2]
[394613229,1763769051227,-589.97205551,0.00011868,2]
[394613230,1763769051237,-1373.15185219,0.00011868,2]
[394613231,1763769051249,-589.97205551,0.00011868,2]
[394613232,1763769051258,-589.97205551,0.00011868,2]
[394613233,1763769051268,-589.97205551,0.00011868,2]
[394613234,1763769051278,-589.97205551,0.00011868,2]
[394613235,1763769051287,-589.97205551,0.00011868,2]
[394613236,1763769051300,-1373.15185219,0.00011868,2]
[394613237,1763769051309,-589.97205551,0.00011868,2]
[394613238,1763769051319,-1373.15185219,0.00011868,2]
[394613239,1763769051329,-589.97205551,0.00011868,2]
[394613240,1763769051338,-1373.15185219,0.00011868,2]
[394613241,1763769051348,-589.97205551,0.00011868,2]
[394613242,1763769051357,-589.97205551,0.00011868,2]
[394613243,1763769051367,-1373.15185219,0.00011868,2]
[394613244,1763769051377,-589.97205551,0.00011868,2]
[394613245,1763769051386,-589.97205551,0.00011868,2]
[394613246,1763769051396,-1373.15185219,0.00011868,2]
[394613247,1763769051406,-1373.15185219,0.00011868,2]
[394613248,1763769051416,-1373.15185219,0.00011868,2]
[394613249,1763769051426,-589.97205551,0.00011868,2]
[394613250,1763769051435,-1373.15185219,0.00011868,2]
[394613251,1763769051445,-589.97205551,0.00011868,2]
[394613252,1763769051454,-1373.15185219,0.00011868,2]
[394613253,1763769051463,-589.97205551,0.00011868,2]
[394613254,1763769051473,-1373.15185219,0.00011868,2]
[394613255,1763769051482,-589.97205551,0.00011868,2]
[394613256,1763769051492,-1373.15185219,0.00011868,2]
[394613257,1763769051506,-1373.15185219,0.00011868,2]
[394613258,1763769051515,-1373.15185219,0.00011868,2]
[394613259,1763769051524,-1373.15185219,0.00011868,2]
[394613260,1763769051534,-1373.15185219,0.00011868,2]
[394613261,1763769051545,-1373.15185219,0.00011868,2]
[394613262,1763769051555,-1373.15185219,0.00011868,2]
[394613263,1763769051564,-586.22620118,0.00011868,2]
[394613264,1763769051576,-586.22620118,0.00011868,2]
[394613265,1763769051586,-586.22620118,0.00011868,2]
[394613266,1763769051596,-1345.36187423,0.00011868,2]
[394613267,1763769051607,-586.22620118,0.00011868,2]
[394613268,1763769051618,-1345.36187423,0.00011868,2]
[394613269,1763769051628,-586.22620118,0.00011868,2]
[394613270,1763769051637,-1345.36187423,0.00011868,2]
[394613271,1763769051648,-586.22620118,0.00011868,2]
[394613272,1763769051658,-1345.36187423,0.00011868,2]
[394613273,1763769051667,-586.22620118,0.00011868,2]
[394613274,1763769051677,-586.22620118,0.00011868,2]
[394613275,1763769051687,-1345.36187423,0.00011868,2]
[394613276,1763769051696,-586.22620118,0.00011868,2]
[394613277,1763769051706,-1345.36187423,0.00011868,2]
[394613278,1763769051715,-586.22620118,0.00011868,2]
[394613279,1763769051725,-1345.36187423,0.00011868,2]
[394613280,1763769051734,-586.22620118,0.00011868,2]
[394613281,1763769051743,-1345.36187423,0.00011868,2]
[394613282,1763769051753,-586.22620118,0.00011868,2]
[394613283,1763769051762,-1345.36187423,0.00011868,2]
[394613284,1763769051772,-586.22620118,0.00011868,2]
[394613285,1763769051781,-586.22620118,0.00011868,2]
[394613286,1763769051792,-1345.36187423,0.00011868,2]
[394613287,1763769051803,-586.22620118,0.00011868,2]
[394613288,1763769051812,-1345.36187423,0.00011868,2]
[394613289,1763769051822,-1345.36187423,0.00011868,2]
[394613290,1763769051832,-586.22620118,0.00011868,2]
[394613291,1763769051905,-1345.36187423,0.00011868,2]
[394613292,1763769051915,-586.22620118,0.00011868,2]
[394613293,1763769051924,-586.22620118,0.00011868,2]
[394613294,1763769051933,-1345.36187423,0.00011868,2]
[394613295,1763769051942,-1345.36187423,0.00011868,2]
[394613296,1763769051952,-1345.36187423,0.00011868,2]
[394613297,1763769051961,-1345.36187423,0.00011868,2]
[394613298,1763769051970,-1345.36187423,0.00011868,2]
[394613299,1763769051979,-586.22620121,0.00011868,2]
[394613300,1763769051988,-586.22620121,0.00011868,2]
[394613301,1763769051997,-1300.51647843,0.00011868,2]
[394613302,1763769052006,-1300.51647843,0.00011868,2]
[394613303,1763769052015,-1300.51647843,0.00011868,2]
[394613304,1763769052024,-1300.51647843,0.00011868,2]
[394613305,1763769052034,-1186.21302892,0.00011868,2]
[394613306,1763769052431,-114.30344951,0.00011868,2]
[394613307,1763769052441,-1300.51647843,0.00011868,2]
[394613308,1763769052450,-1300.51647843,0.00011868,2]
[394613309,1763769052460,-1300.51647843,0.00011868,2]
[394613310,1763769052470,-1300.51647843,0.00011868,2]
[394613311,1763769052479,-1300.51647843,0.00011868,2]
[394613312,1763769052489,-1300.51647843,0.00011868,2]
[394613313,1763769052501,-592.47025933,0.00011868,2]
[394613314,1763769224697,3613.9951922,0.0002,30]
[394613316,1763769630265,203.6,0.00025279,120]
[394613317,1763769637711,212.86576922,8.172e-05,2]
[394613318,1763769657475,-212.86576922,8.255e-05,2]
[394613319,1763769657503,-150.0,8.38e-05,2]
[394613320,1763769657531,-212.86576922,8.507e-05,2]
[394613321,1763769657558,-177.0,0.0001038,2]
[394613322,1763769657586,-169.94636206,0.000113,2]
[394613323,1763769657614,-296.15097825,0.00011769,2]
[394613324,1763769657642,-500.0,0.00011769,2]
[394613325,1763769657676,-500.0,0.00011769,2]
[394613326,1763769657708,-500.0,0.00011769,2]
[394613327,1763769657744,-500.0,0.00011769,2]
[394613328,1763769657774,-500.0,0.00011769,2]
[394613329,1763769657803,-500.0,0.00011769,2]
[394613330,1763769657840,-500.0,0.00011769,2]
[394613331,1763769657873,-62.3422425,0.00011769,2]
[394613332,1763769658154,-437.6577575,0.00011769,2]
[394613351,1763770232020,-168.012686,9.374e-05,2]
[394613352,1763770232030,-150.0,9.422e-05,2]
[394613353,1763770232039,-168.012686,9.469e-05,2]
[394613354,1763770232047,-123.59496753,9.565e-05,2]
[394613986,1763770248305,-168.012686,9.28e-05,2]
[394613987,1763770248315,-44.41771847,9.565e-05,2]
[394613988,1763770248324,-206.23,0.00010501,2]
[394613989,1763770248334,-177.0,0.00011422,2]
[394613990,1763770248344,-189.585,0.00011534,2]
[394613991,1763770248353,-207.30568477,0.00011647,2]
[394613992,1763770248363,-500.0,0.00011647,2]
[394613993,1763770248372,-500.0,0.00011647,2]
[394613994,1763770248381,-500.0,0.00011647,2]
[394613995,1763770248392,-411.72584486,0.00011647,2]
[394613996,1763770248402,-500.0,0.00011647,2]
[394613997,1763770248411,-500.0,0.00011647,2]
[394613998,1763770248420,-500.0,0.00011647,2]